bitfinex-derivatives/quotes_BTCF0:USTF0_20251209
["timestamp","ask_amount","ask_price","bid_price","bid_amount"]
[1765257648187,0.18181,89882.0,89881.0,0.16184]
[1765257648598,0.18181,89882.0,89881.0,0.16384]
[1765257648981,0.18181,89882.0,89881.0,0.5249649]
[1765257649185,0.09793001,89895.0,89894.0,0.16184]
[1765257649488,0.00016681,89895.0,89894.0,0.51184]
[1765257650694,0.24237,89915.0,89914.0,0.16184]
[1765257651084,0.24237,89915.0,89914.0,0.22184326]
[1765257651279,0.24237,89915.0,89914.0,0.16184]
[1765257651480,0.24237,89915.0,89914.0,0.08092]
[1765257651682,0.18181,89913.0,89912.0,0.06000326]
[1765257651901,0.1929317,89907.0,89906.0,0.00016681]
[1765257652286,0.18181,89907.0,89906.0,0.00016681]
[1765257652793,0.18181,89907.0,89906.0,0.08108681]
[1765257653390,0.1939317,89907.0,89906.0,0.08308681]
[1765257653586,0.18281,89907.0,89906.0,0.08308681]
[1765257654699,0.18281,89907.0,89906.0,0.08808681]
[1765257655702,0.18281,89907.0,89906.0,0.16900681]
[1765257658404,0.18281,89907.0,89906.0,0.00716681]
[1765257658804,0.18281,89907.0,89906.0,0.16900681]
[1765257660903,0.18281,89907.0,89906.0,0.52900681]
[1765257661210,0.18281,89907.0,89906.0,0.00716681]
[1765257661799,0.0111228,89898.0,89897.0,4e-08]
[1765257662102,0.16487,89874.0,89868.0,0.0100519]
[1765257662292,0.16487,89874.0,89860.0,0.11885367]
[1765257662899,0.16487,89874.0,89865.0,0.00016681]
[1765257663199,0.16487,89866.0,89865.0,0.00016681]
[1765257663394,0.1759967,89866.0,89865.0,0.00016681]
[1765257664503,0.17607474,89866.0,89865.0,0.00416681]
[1765257665498,0.17707474,89866.0,89865.0,0.00716681]
[1765257666122,0.17707474,89866.0,89865.0,0.35716681]
[1765257666309,0.17707474,89866.0,89865.0,0.18716681]
[1765257667901,0.17707474,89866.0,89865.0,0.00716681]
[1765257669301,0.17707474,89866.0,89865.0,0.35716681]
[1765257669504,0.17707474,89866.0,89865.0,0.00716681]
[1765257670103,0.00107804,89866.0,89865.0,0.49444681]
[1765257671111,0.16594804,89866.0,89865.0,0.49444681]
[1765257671311,0.16594804,89866.0,89865.0,0.00716681]
[1765257676917,0.17707474,89866.0,89865.0,0.00716681]
[1765257682519,0.17707474,89866.0,89865.0,0.56260681]
[1765257682520,0.08451804,89866.0,89865.0,0.56260681]
[1765257684825,0.00107804,89866.0,89865.0,0.56260681]
[1765257685914,0.0111256,89875.0,89869.0,0.0111263]
[1765257686115,0.0111256,89875.0,89874.0,0.14544]
[1765257686315,0.1773456,89875.0,89874.0,0.52544]
[1765257687026,0.17740452,89875.0,89874.0,0.52544]
[1765257687234,0.17840452,89875.0,89874.0,0.52544]
[1765257687921,0.17840452,89875.0,89874.0,0.52744]
[1765257688323,0.17840452,89875.0,89874.0,0.52844]
[1765257688645,0.17740452,89875.0,89874.0,0.52644]
[1765257688823,0.17840452,89875.0,89874.0,0.52744]
[1765257689016,0.17840452,89875.0,89874.0,0.52844]
[1765257691128,0.00105892,89875.0,89874.0,0.52844]
[1765257691333,0.0111229,89898.0,89881.0,0.1565649]
[1765257691632,0.1773429,89898.0,89897.0,0.14544]
[1765257691830,0.20186053,89898.0,89897.0,0.49544]
[1765257692218,0.20186053,89898.0,89897.0,0.53544]
[1765257693425,0.1773429,89898.0,89897.0,0.53544]
[1765257694224,0.16622,89898.0,89897.0,0.53644]
[1765257695323,0.08322,89901.0,89900.0,0.14544]
[1765257695628,0.08322,89901.0,89900.0,0.49544]
[1765257695833,0.00016691,89906.0,89905.0,0.1565619]
[1765257696034,0.08338691,89906.0,89905.0,0.5365619]
[1765257696238,0.16638691,89906.0,89905.0,0.5365619]
[1765257697237,0.16638691,89906.0,89905.0,0.5375619]
[1765257697434,0.16838691,89906.0,89905.0,0.5375619]
[1765257697838,0.16838691,89906.0,89905.0,0.001]
[1765257698039,0.16622,89893.0,89892.0,0.14544]
[1765257698232,0.16622,89893.0,89892.0,0.55544]
[1765257698735,0.16622,89893.0,89892.0,0.56562886]
[1765257699137,0.21563,89904.0,89903.0,0.14544]
[1765257699443,0.16622,89895.0,89894.0,0.24059909]
[1765257699644,0.16622,89895.0,89894.0,0.57544]
[1765257700542,0.16622,89895.0,89894.0,0.57744]
[1765257701338,0.16722,89895.0,89894.0,0.57944]
[1765257704753,0.001,89895.0,89894.0,0.57944]
[1765257705051,0.16661,89895.0,89894.0,0.57944]
[1765257705242,0.16661,89895.0,89894.0,0.004]
[1765257708152,0.16661,89895.0,89894.0,0.09812]
[1765257709557,0.16661,89895.0,89894.0,0.51812]
[1765257713654,0.001,89895.0,89894.0,0.51812]
[1765257717362,0.001,89895.0,89894.0,0.57809492]
[1765257717762,0.15451,89895.0,89894.0,0.57809492]
[1765257718061,0.001,89895.0,89894.0,0.57809492]
[1765257718252,0.001,89895.0,89894.0,0.51812]
[1765257720861,0.15451,89895.0,89894.0,0.51812]
[1765257722154,0.15351,89890.0,89889.0,0.00016691]
[1765257722357,0.15351,89878.0,89877.0,0.03972]
[1765257722555,0.15351,89878.0,89877.0,0.46944]
[1765257724768,0.15751,89878.0,89877.0,0.47344]
[1765257725468,0.15451,89878.0,89877.0,0.47744]
[1765257726184,0.15451,89878.0,89877.0,0.398]
[1765257726972,0.15451,89878.0,89877.0,0.42748]
[1765257728267,0.15451,89878.0,89877.0,0.008]
[1765257728769,0.15451,89878.0,89877.0,0.408]
[1765257729966,0.15451,89878.0,89877.0,0.46696]
[1765257731159,0.00016691,89886.0,89885.0,0.0700844]
[1765257731367,0.18823,89901.0,89900.0,0.05896]
[1765257731657,0.11433,89908.0,89907.0,0.05896]
[1765257731864,0.11433,89908.0,89907.0,0.5000817]
[1765257732274,0.18855,89908.0,89907.0,0.5000817]
[1765257733268,0.18855,89908.0,89907.0,0.2300817]
[1765257733970,0.15827511,89908.0,89907.0,0.2300817]
[1765257734177,0.15927511,89908.0,89907.0,0.2300817]
[1765257734567,0.15827511,89908.0,89907.0,0.2300817]
[1765257735063,0.15827511,89908.0,89907.0,0.4900817]
[1765257735475,0.15827511,89908.0,89907.0,0.2000817]
[1765257735775,0.15827511,89908.0,89907.0,0.4400817]
[1765257735976,0.005,89908.0,89907.0,0.4400817]
[1765257736665,0.19387217,89915.0,89914.0,0.1304208]
[1765257736865,0.19387217,89915.0,89914.0,0.4804208]
[1765257738376,0.20387217,89915.0,89914.0,0.4814208]
[1765257741975,0.08554217,89915.0,89914.0,0.4814208]
[1765257742367,0.15996217,89915.0,89914.0,0.4814208]
[1765257745976,0.20527217,89915.0,89914.0,0.4703]
[1765257746181,0.20527217,89915.0,89914.0,0.09065]
[1765257746472,0.20527217,89915.0,89914.0,0.031]
[1765257747774,0.20527217,89915.0,89914.0,0.43065]
[1765257748078,0.20527217,89915.0,89914.0,0.4903]
[1765257751080,0.08554217,89915.0,89914.0,0.4903]
[1765257751272,0.01111217,89915.0,89914.0,0.4903]
[1765257751973,0.20527217,89915.0,89914.0,0.4903]
[1765257752480,0.20327217,89915.0,89914.0,0.4893]
[1765257752775,0.20327217,89915.0,89914.0,0.42965]
[1765257752776,0.19927217,89915.0,89914.0,0.42965]
[1765257753078,0.19927217,89915.0,89892.0,0.04403288]
[1765257753079,0.0111217,89907.0,89904.0,0.05965]
[1765257753271,0.14885,89900.0,89899.0,0.05981691]
[1765257753478,0.14885,89900.0,89899.0,0.00016691]
[1765257754572,0.14885,89900.0,89899.0,0.00116691]
[1765257756082,0.14885,89900.0,89899.0,0.00216691]
[1765257761085,0.1599725,89900.0,89899.0,0.00216691]
[1765257761278,0.14885,89900.0,89899.0,0.00216691]
[1765257765694,0.14885,89900.0,89899.0,0.04695691]
[1765257766293,0.14885,89900.0,89899.0,0.10677653]
[1765257766588,0.14885,89900.0,89899.0,0.15156619]
[1765257767279,0.14885,89900.0,89899.0,0.53156619]
[1765257767487,0.14885,89900.0,89899.0,0.47174691]
[1765257767681,0.18114,89908.0,89907.0,0.1007017]
[1765257767885,0.18114,89908.0,89907.0,0.4807017]
[1765257769182,0.18214,89908.0,89907.0,0.4807017]
[1765257769791,0.18214,89908.0,89907.0,0.4607017]
[1765257770983,0.04096,89901.0,89900.0,0.0111225]
[1765257771175,0.17679,89901.0,89900.0,0.0111225]
[1765257771379,0.17679,89901.0,89900.0,0.07094556]
[1765257771594,0.17679,89901.0,89900.0,0.05982306]
[1765257772078,0.13583,89900.0,89899.0,0.00016691]
[1765257773283,0.13583,89900.0,89899.0,0.00116691]
[1765257773593,0.13583,89900.0,89899.0,0.09074691]
[1765257773986,0.13583,89900.0,89899.0,0.09274691]
[1765257775396,0.13583,89900.0,89899.0,0.54256997]
[1765257775585,0.13583,89900.0,89899.0,0.26274691]
[1765257775891,0.13583,89900.0,89899.0,0.54256997]
[1765257777988,0.18114,89908.0,89907.0,0.1007017]
[1765257778192,0.18225217,89915.0,89914.0,0.1007008]
[1765257778391,0.20666263,89915.0,89914.0,0.1007008]
[1765257779285,0.20666263,89915.0,89914.0,0.0559108]
[1765257779488,0.20966263,89915.0,89914.0,0.0111208]
[1765257780497,0.20966263,89915.0,89914.0,0.0559108]
[1765257780881,0.21066263,89915.0,89914.0,0.0559108]
[1765257782988,0.21066263,89915.0,89914.0,0.4707008]
[1765257783188,0.18625217,89915.0,89914.0,0.4707008]
[1765257783489,0.18525217,89915.0,89914.0,0.4707008]
[1765257784398,0.18225217,89915.0,89914.0,0.4717008]
[1765257784894,0.18225217,89915.0,89914.0,0.4269108]
[1765257785200,0.18225217,89915.0,89914.0,0.002]
[1765257786789,0.20662126,89915.0,89914.0,0.002]
[1765257787597,0.18225217,89915.0,89914.0,0.03386]
[1765257788092,0.18225217,89915.0,89914.0,0.45572]
[1765257790495,0.18225217,89915.0,89914.0,0.062]
[1765257790699,0.20661969,89915.0,89914.0,0.002]
[1765257791100,0.18225217,89915.0,89914.0,0.002]
[1765257791999,0.20661889,89915.0,89914.0,0.42386]
[1765257792191,0.20661889,89915.0,89914.0,0.112]
[1765257796002,0.20661889,89915.0,89914.0,0.43148]
[1765257796301,0.20661889,89915.0,89914.0,0.44191973]
[1765257796302,0.12258217,89915.0,89914.0,0.44191973]
[1765257796605,0.13370287,89915.0,89914.0,0.382]
[1765257797498,0.12258217,89915.0,89914.0,0.382]
[1765257800106,0.12258217,89915.0,89914.0,0.152]
[1765257800303,0.12258217,89915.0,89914.0,0.002]
[1765257800492,0.14695065,89915.0,89914.0,0.002]
[1765257808798,0.14695065,89915.0,89914.0,0.05148]
[1765257809004,0.14695065,89915.0,89914.0,0.44148]
[1765257809213,0.14695065,89915.0,89914.0,0.50146598]
[1765257809403,0.14695065,89915.0,89914.0,0.44148]
[1765257811203,0.14695065,89915.0,89914.0,0.50146778]
[1765257811707,0.14695065,89915.0,89914.0,0.44148]
[1765257811913,0.12258217,89915.0,89914.0,0.002]
[1765257812109,0.14693891,89915.0,89914.0,0.06199641]
[1765257812302,0.14693891,89915.0,89914.0,0.002]
[1765257812906,0.14516394,89915.0,89914.0,0.002]
[1765257819010,0.14516394,89915.0,89914.0,0.0131208]
[1765257819210,0.14516394,89915.0,89914.0,0.0385308]
[1765257820320,0.14516394,89915.0,89914.0,0.002]
[1765257825642,0.1238425,89900.0,89899.0,0.00016691]
[1765257825842,0.1238425,89900.0,89899.0,0.49596691]
[1765257826641,0.1238425,89900.0,89899.0,0.49696691]
[1765257834044,0.1603825,89900.0,89899.0,0.49696691]
[1765257836138,0.1603825,89900.0,89899.0,0.38116691]
[1765257836338,0.1603825,89900.0,89899.0,0.12116691]
[1765257836544,0.1603825,89900.0,89899.0,0.17427691]
[1765257837637,0.1603825,89900.0,89899.0,0.47696691]
[1765257839341,0.14926,89900.0,89899.0,0.47696691]
[1765257840834,0.11272,89900.0,89899.0,0.47696691]
[1765257841045,0.14926,89910.0,89909.0,0.1158]
[1765257841250,0.17399718,89910.0,89909.0,0.5158]
[1765257841548,0.02473718,89910.0,89909.0,0.5158]
[1765257841740,0.11272,89910.0,89909.0,0.5158]
[1765257841938,0.17157954,89910.0,89909.0,0.5158]
[1765257842134,0.17157954,89910.0,89909.0,0.5178]
[1765257842337,0.17157954,89910.0,89909.0,0.5188]
[1765257843739,0.13745954,89910.0,89909.0,0.5188]
[1765257843938,0.01128751,89916.0,89909.0,0.5188]
[1765257843939,0.00016691,89916.0,89915.0,0.1219907]
[1765257844142,0.00016691,89916.0,89915.0,0.4719907]
[1765257844547,0.10968691,89916.0,89915.0,0.4719907]
[1765257844751,0.14380691,89916.0,89915.0,0.4719907]
[1765257844951,0.14380691,89916.0,89915.0,0.46087]
[1765257845151,0.14380691,89916.0,89915.0,0.46187]
[1765257847356,0.14380691,89916.0,89915.0,0.001]
[1765257848653,0.14380691,89916.0,89915.0,0.05489]
[1765257849155,0.14380691,89916.0,89915.0,0.11187]
[1765257849354,0.14380691,89916.0,89915.0,0.001]
[1765257849954,0.14380691,89916.0,89915.0,0.05489]
[1765257850653,0.14380691,89916.0,89915.0,0.001]
[1765257852052,0.14380691,89916.0,89915.0,0.05489]
[1765257854159,0.14380691,89916.0,89915.0,0.0660107]
[1765257854759,0.14380691,89916.0,89915.0,0.1217207]
[1765257856658,0.00016691,89916.0,89915.0,0.4917207]
[1765257856863,0.11069691,89916.0,89915.0,0.4917207]
[1765257858361,0.11069691,89916.0,89915.0,0.001]
[1765257858862,0.34069691,89916.0,89915.0,0.001]
[1765257859861,0.11069691,89916.0,89915.0,0.001]
[1765257860061,0.11069691,89916.0,89915.0,0.10734]
[1765257862065,0.11069691,89916.0,89915.0,0.1184607]
[1765257863159,0.11069691,89916.0,89915.0,0.5084607]
[1765257864552,0.03654,89925.0,89915.0,0.5084607]
[1765257864553,0.14707,89925.0,89924.0,0.1174596]
[1765257864850,0.14465,89930.0,89929.0,0.1174589]
[1765257865051,0.14465,89930.0,89929.0,0.4874589]
[1765257865259,0.14465,89930.0,89929.0,0.49825306]
[1765257865454,0.14465,89930.0,89929.0,0.4874589]
[1765257867052,0.14665,89930.0,89929.0,0.4874589]
[1765257867251,0.14765,89930.0,89929.0,0.4874589]
[1765257867648,0.14565,89930.0,89929.0,0.4874589]
[1765257867952,0.14565,89930.0,89929.0,0.4884589]
[1765257871658,0.14565,89930.0,89929.0,0.14734]
[1765257872063,0.17028761,89930.0,89929.0,0.14734]
[1765257872367,0.17028761,89930.0,89929.0,0.4484589]
[1765257873363,0.14303,89930.0,89929.0,0.4484589]
[1765257874775,0.14303,89930.0,89929.0,0.43734]
[1765257874965,0.16766892,89930.0,89929.0,0.43734]
[1765257875770,0.16766892,89930.0,89929.0,0.10734]
[1765257875965,0.16766892,89930.0,89929.0,0.13734]
[1765257878465,0.14303,89930.0,89929.0,0.001]
[1765257878672,0.57766635,89930.0,89929.0,0.001]
[1765257879577,0.35766635,89930.0,89929.0,0.001]
[1765257881969,0.56766635,89930.0,89929.0,0.001]
[1765257882178,0.16766635,89930.0,89929.0,0.05163]
[1765257882477,0.16766635,89930.0,89929.0,0.001]
[1765257883675,0.16766635,89930.0,89929.0,0.04653]
[1765257883879,0.16766635,89930.0,89929.0,0.09206]
[1765257884477,0.16766635,89930.0,89929.0,0.001]
[1765257884882,0.16766635,89930.0,89929.0,0.09206]
[1765257886877,0.16766635,89930.0,89929.0,0.001]
[1765257889980,0.17878515,89930.0,89929.0,0.001]
[1765257896675,0.17878515,89930.0,89929.0,0.21206]
[1765257897074,0.17878515,89930.0,89929.0,0.16653]
[1765257897374,0.17878515,89930.0,89929.0,0.121]
[1765257897575,0.49878515,89930.0,89929.0,0.001]
[1765257898278,0.22878515,89930.0,89929.0,0.001]
[1765257899475,0.43878515,89930.0,89929.0,0.001]
[1765257900382,0.17878515,89930.0,89929.0,0.001]
[1765257900583,0.18878515,89930.0,89929.0,0.001]
[1765257900780,0.43878515,89930.0,89929.0,0.001]
[1765257902081,0.43878515,89930.0,89896.0,0.08008634]
[1765257902082,0.08894,89902.0,89896.0,0.08008634]
[1765257902284,0.04484,89891.0,89886.0,0.0111242]
[1765257902494,0.08894,89891.0,89884.0,0.01124834]
[1765257902887,0.0111238,89890.0,89884.0,0.01124834]
[1765257903078,0.11497,89885.0,89884.0,0.00012384]
[1765257903283,0.11497,89885.0,89884.0,0.09131384]
[1765257904692,0.08894,89885.0,89884.0,0.09231384]
[1765257905585,0.08894,89885.0,89884.0,0.09331384]
[1765257908194,0.08894,89885.0,89884.0,0.49331384]
[1765257911396,0.02603,89895.0,89894.0,0.09119]
[1765257911397,0.11497,89895.0,89894.0,0.09119]
[1765257911589,0.11497,89895.0,89894.0,0.1023133]
[1765257912699,0.11597,89895.0,89894.0,0.1023133]
[1765257912897,0.11697,89895.0,89894.0,0.1023133]
[1765257915001,0.0952,89885.0,89884.0,0.10669834]
[1765257915302,0.0952,89885.0,89884.0,0.00012384]
[1765257915501,0.0952,89885.0,89884.0,0.05024384]
[1765257915703,0.0952,89885.0,89884.0,0.09557384]
[1765257916204,0.0952,89885.0,89884.0,0.09657384]
[1765257916604,0.0952,89885.0,89884.0,0.09757384]
[1765257922613,0.04956,89885.0,89884.0,0.09757384]
[1765257922800,0.0952,89885.0,89884.0,0.09757384]
[1765257926622,0.0952,89885.0,89884.0,0.47757384]
[1765257932016,0.1202007,89885.0,89884.0,0.47757384]
[1765257934115,0.0745607,89885.0,89884.0,0.50333384]
[1765257934320,0.1202007,89885.0,89884.0,0.50333384]
[1765257935920,0.1202007,89885.0,89884.0,0.47757384]
[1765257936125,0.1202007,89885.0,89884.0,0.10757384]
[1765257936425,0.1202007,89885.0,89884.0,0.32757384]
[1765257937725,0.0250007,89885.0,89884.0,0.39000384]
[1765257937929,0.00016681,89896.0,89895.0,0.1065731]
[1765257938124,0.00016681,89896.0,89895.0,0.4565731]
[1765257938938,0.12334,89912.0,89911.0,0.09545]
[1765257939431,0.49334,89912.0,89911.0,0.09545]
[1765257939734,0.0952,89889.0,89888.0,0.09545]
[1765257939928,0.0952,89889.0,89888.0,0.44545]
[1765257940123,0.0952,89889.0,89888.0,0.09545]
[1765257941131,0.0952,89889.0,89888.0,0.09645]
[1765257941630,0.0952,89889.0,89888.0,0.09745]
[1765257946335,0.0952,89889.0,89888.0,0.09645]
[1765257946534,0.0952,89889.0,89888.0,0.09745]
[1765257947031,0.0952,89889.0,89888.0,0.09645]
[1765257947236,0.0952,89889.0,89888.0,0.09745]
[1765257948141,0.0952,89889.0,89888.0,0.46745]
[1765257948332,0.04680638,89897.0,89896.0,0.102063]
[1765257948538,0.00016638,89897.0,89896.0,0.512063]
[1765257949435,0.0111215,89909.0,89908.0,0.09094]
[1765257949634,0.1063215,89909.0,89908.0,0.09094]
[1765257949839,0.13119087,89909.0,89908.0,0.09094]
[1765257950035,0.12006937,89909.0,89908.0,0.09094]
[1765257950339,0.12006937,89909.0,89908.0,0.12094]
[1765257950540,0.0952,89909.0,89908.0,0.12094]
[1765257950740,0.0962,89909.0,89908.0,0.12094]
[1765257951136,0.0962,89909.0,89908.0,0.09094]
[1765257951330,0.0972,89909.0,89908.0,0.09094]
[1765257952035,0.0962,89909.0,89908.0,0.09194]
[1765257952229,0.001,89909.0,89908.0,0.46194]
[1765257952636,0.09631217,89915.0,89914.0,0.09094]
[1765257952834,0.12116811,89915.0,89914.0,0.37094]
[1765257953226,0.12116811,89915.0,89914.0,0.3820608]
[1765257953227,0.09631217,89915.0,89914.0,0.3820608]
[1765257953438,0.12529217,89915.0,89914.0,0.37094]
[1765257953643,0.12629217,89915.0,89914.0,0.37094]
[1765257953938,0.12729217,89915.0,89914.0,0.37094]
[1765257954143,0.12729217,89915.0,89914.0,0.09094]
[1765257955744,0.12629217,89915.0,89914.0,0.09094]
[1765257955944,0.12529217,89915.0,89914.0,0.09094]
[1765257956138,0.09631217,89915.0,89914.0,0.09094]
[1765257957642,0.09631217,89915.0,89914.0,0.09194]
[1765257958342,0.09631217,89915.0,89914.0,0.45294]
[1765257958942,0.09631217,89915.0,89914.0,0.45194]
[1765257959243,0.09631217,89915.0,89914.0,0.45294]
[1765257959643,0.09631217,89915.0,89914.0,0.09294]
[1765257959846,0.12529217,89915.0,89914.0,0.09294]
[1765257961038,0.0952,89901.0,89900.0,0.00016681]
[1765257961244,0.11452,89885.0,89884.0,0.09106384]
[1765257961442,0.11452,89885.0,89884.0,0.22218824]
[1765257961630,0.11452,89885.0,89884.0,0.10218824]
[1765257962739,0.11652,89885.0,89884.0,0.10218824]
[1765257963138,0.11752,89885.0,89884.0,0.10218824]
[1765257963337,0.11552,89885.0,89884.0,0.10518824]
[1765257963745,0.0962,89885.0,89884.0,0.10518824]
[1765257964538,0.0952,89885.0,89884.0,0.10718824]
[1765257967946,0.0952,89885.0,89884.0,0.50718824]
[1765257973857,0.1196,89885.0,89884.0,0.10718824]
[1765257974357,0.1196,89885.0,89884.0,0.10365824]
[1765257975939,0.1196,89885.0,89884.0,0.09253384]
[1765257978945,0.0952,89885.0,89884.0,0.09253384]
[1765257979147,0.0952,89885.0,89884.0,0.44253384]
[1765257987659,0.1196,89885.0,89884.0,0.10253384]
[1765257988461,0.1196,89885.0,89884.0,0.09253384]
[1765257989254,0.14438902,89885.0,89884.0,0.09253384]
[1765257990757,0.1196,89885.0,89884.0,0.09253384]
[1765257991467,0.14436477,89885.0,89884.0,0.09253384]
[1765257992167,0.1196,89885.0,89884.0,0.09253384]
[1765257997380,0.1307244,89885.0,89884.0,0.09253384]
[1765257998281,0.1196,89885.0,89884.0,0.09253384]
[1765258002090,0.1196,89885.0,89884.0,0.04895384]
[1765258002481,0.1196,89885.0,89884.0,0.00512384]
[1765258002687,0.1196,89885.0,89884.0,0.08173384]
[1765258004983,0.0872554,89877.0,89876.0,0.00016681]
[1765258005177,0.07613,89877.0,89876.0,0.03795681]
[1765258005382,0.07613,89877.0,89876.0,0.07677681]
[1765258006178,0.07823332,89877.0,89876.0,0.03795681]
[1765258006487,0.07823332,89877.0,89876.0,0.00016681]
[1765258006691,0.07823332,89877.0,89876.0,0.07677681]
[1765258006892,0.08023332,89877.0,89876.0,0.07677681]
[1765258007285,0.07823332,89877.0,89876.0,0.07677681]
[1765258007495,0.08123332,89877.0,89876.0,0.07677681]
[1765258008494,0.08123332,89877.0,89876.0,0.46677681]
[1765258008700,0.08123332,89877.0,89876.0,0.48068681]
[1765258008999,0.04230332,89877.0,89876.0,0.48068681]
[1765258009393,0.08123332,89877.0,89876.0,0.48068681]
[1765258010701,0.00510332,89877.0,89876.0,0.48068681]
[1765258011487,0.08123332,89877.0,89876.0,0.48068681]
[1765258013595,0.04230332,89877.0,89876.0,0.48068681]
[1765258014391,0.08123332,89877.0,89876.0,0.48068681]
[1765258014792,0.00510332,89877.0,89876.0,0.48068681]
[1765258015193,0.04230332,89877.0,89876.0,0.48068681]
[1765258015790,0.08123332,89877.0,89876.0,0.25068681]
[1765258016696,0.08123332,89877.0,89876.0,0.52068681]
[1765258017494,0.04230332,89877.0,89876.0,0.52068681]
[1765258019400,0.08123332,89877.0,89876.0,0.52068681]
[1765258020694,0.04230332,89877.0,89876.0,0.46068681]
[1765258021798,0.00510332,89877.0,89876.0,0.46068681]
[1765258022799,0.07537332,89877.0,89876.0,0.46068681]
[1765258023206,0.02537332,89877.0,89876.0,0.46068681]
[1765258023393,0.06122332,89877.0,89876.0,0.46068681]
[1765258023799,0.48836315,89888.0,89887.0,0.06961]
[1765258023996,0.51309841,89888.0,89887.0,0.06961]
[1765258024297,0.51309841,89888.0,89887.0,0.0807341]
[1765258025305,0.51309841,89888.0,89887.0,0.0817341]
[1765258035109,0.03706681,89893.0,89892.0,0.1033735]
[1765258035414,0.00016681,89893.0,89892.0,0.5233735]
[1765258036915,0.07222,89906.0,89905.0,0.0818918]
[1765258037117,0.09695849,89906.0,89905.0,0.5018918]
[1765258037411,0.09695849,89906.0,89905.0,0.2518918]
[1765258038317,0.09695849,89906.0,89905.0,0.4818918]
[1765258039412,0.00111217,89915.0,89912.0,0.011121]
[1765258039619,0.07333217,89915.0,89914.0,0.07077]
[1765258039811,0.09805133,89915.0,89914.0,0.07077]
[1765258040816,0.07333217,89915.0,89914.0,0.07077]
[1765258041517,0.07433217,89915.0,89914.0,0.07077]
[1765258041907,0.03901217,89915.0,89914.0,0.50077]
[1765258042114,0.00211217,89915.0,89914.0,0.50077]
[1765258042307,0.03901217,89915.0,89914.0,0.50077]
[1765258042513,0.07433217,89915.0,89914.0,0.50077]
[1765258042913,0.07333217,89915.0,89914.0,0.50077]
[1765258043915,0.07333217,89915.0,89914.0,0.50177]
[1765258044321,0.07333217,89915.0,89914.0,0.50277]
[1765258045725,0.07333217,89915.0,89914.0,0.07277]
[1765258045920,0.09462217,89915.0,89914.0,0.07277]
[1765258047933,0.07333217,89915.0,89914.0,0.07277]
[1765258050329,0.07333217,89915.0,89914.0,0.0838908]
[1765258055842,0.07333217,89915.0,89914.0,0.0131208]
[1765258056031,0.48333217,89915.0,89914.0,0.002]
[1765258056734,0.53476928,89915.0,89914.0,0.002]
[1765258056933,0.53477768,89915.0,89914.0,0.002]
[1765258057530,0.48333217,89915.0,89914.0,0.002]
[1765258057731,0.53477768,89915.0,89914.0,0.002]
[1765258058134,0.53419925,89915.0,89914.0,0.002]
[1765258059332,0.53405406,89915.0,89914.0,0.002]
[1765258060741,0.48333217,89915.0,89914.0,0.002]
[1765258060941,0.53312226,89915.0,89914.0,0.002]
[1765258061138,0.48333217,89915.0,89914.0,0.002]
[1765258063442,0.09252,89904.0,89903.0,0.0835121]
[1765258063641,0.09252,89904.0,89897.0,0.00016681]
[1765258063642,0.06724,89898.0,89897.0,0.00016681]
[1765258064758,0.43924,89898.0,89897.0,0.00016681]
[1765258066344,0.43824,89898.0,89897.0,0.00016681]
[1765258067345,0.43924,89898.0,89897.0,0.00016681]
[1765258067648,0.44124,89898.0,89897.0,0.00016681]
[1765258076148,0.49205618,89898.0,89897.0,0.00016681]
[1765258079554,0.06724,89891.0,89890.0,0.0111237]
[1765258079755,0.20724,89891.0,89890.0,0.0448937]
[1765258080054,0.20724,89891.0,89890.0,0.0811737]
[1765258092363,0.06724,89891.0,89890.0,0.4411737]
[1765258092962,0.06724,89891.0,89890.0,0.0811737]
[1765258093167,0.06724,89891.0,89890.0,0.1311737]
[1765258094662,0.06724,89891.0,89890.0,0.0811737]
[1765258095564,0.47724,89891.0,89886.0,0.07964941]
[1765258095770,0.0726341,89887.0,89886.0,0.03031]
[1765258095971,0.06151,89883.0,89882.0,0.06279681]
[1765258096169,0.33151,89883.0,89882.0,0.06279681]
[1765258097555,0.33151,89883.0,89882.0,0.06579681]
[1765258098664,0.33151,89883.0,89882.0,0.00316681]
[1765258098867,0.06151,89867.0,89866.0,0.0737567]
[1765258099173,0.06151,89867.0,89866.0,0.15340611]
[1765258099356,0.06151,89867.0,89866.0,0.0737567]
[1765258100163,0.06351,89867.0,89866.0,0.0737567]
[1765258105677,0.06351,89867.0,89866.0,0.4637567]
[1765258107073,0.03331,89867.0,89866.0,0.4637567]
[1765258107775,0.06351,89867.0,89866.0,0.4637567]
[1765258110175,0.03331,89867.0,89866.0,0.4637567]
[1765258112272,0.002,89867.0,89866.0,0.4637567]
[1765258116283,0.03331,89867.0,89866.0,0.4637567]
[1765258116577,0.002,89867.0,89866.0,0.4637567]
[1765258120783,0.03331,89867.0,89866.0,0.4637567]
[1765258121777,0.002,89867.0,89866.0,0.4637567]
[1765258124688,0.002,89867.0,89866.0,0.0737567]
[1765258124889,0.002,89867.0,89866.0,0.0837567]
[1765258124890,0.06063,89867.0,89866.0,0.0837567]
[1765258132091,0.002,89867.0,89866.0,0.4337567]
[1765258132595,0.06063,89867.0,89866.0,0.2137567]
[1765258132798,0.06063,89867.0,89866.0,0.2938823]
[1765258133699,0.06063,89867.0,89866.0,0.5638823]
[1765258134298,0.06063,89867.0,89866.0,0.56388333]
[1765258134499,0.06063,89867.0,89866.0,0.4837567]
[1765258134797,0.06063,89867.0,89866.0,0.56388372]
[1765258137299,0.06063,89867.0,89866.0,0.56388261]
[1765258139708,0.06063,89867.0,89866.0,0.49012591]
[1765258140008,0.05863,89841.0,89840.0,0.0011131]
[1765258140189,0.0697608,89833.0,89832.0,0.00013263]
[1765258140390,0.07602,89830.0,89829.0,0.06899792]
[1765258140600,0.51400458,89830.0,89829.0,0.06899792]
[1765258140797,0.51400458,89830.0,89829.0,0.05788]
[1765258141392,0.05872707,89830.0,89829.0,0.05788]
[1765258143103,0.05872707,89830.0,89829.0,0.05888]
[1765258151005,0.08141707,89830.0,89829.0,0.05888]
[1765258151805,9.707e-05,89830.0,89829.0,0.42888]
[1765258152205,0.10777691,89838.0,89837.0,0.1211603]
[1765258152405,0.10777691,89838.0,89837.0,0.4711603]
[1765258152406,0.00016691,89838.0,89837.0,0.4711603]
[1765258153319,0.00022299,89838.0,89837.0,0.4711603]